[Event "Krakow Championship-A 2022"]
[Site "Krakow"]
[Date "2022.07.02"]
[Round "9.12"]
[White "Lim, Zhuo Ren"]
[Black "Liu, Casper"]
[Result "0-1"]
[ECO "E04"]
[WhiteElo "2290"]
[BlackElo "2218"]
[Annotator "TA"]
[PlyCount "74"]
[EventDate "2022.06.25"]
[EventType "swiss"]
[EventCountry "POL"]
[SourceTitle "playchess.com"]
[Source "ChessBase"]
[SourceQuality "1"]
[TimeControl "40/5400+30:1800+30"]

{[%evp 17,74,20,35,32,29,28,28,25,20,16,14,18,9,6,44,19,33,0,36,0,20,17,34,43,42,0,62,66,83,77,62,13,34,-14,0,0,0,-53,-62,-231,-230,-246,-238,-274,-227,-269,-250,-316,-253,-327,-312,-325,-282,-807,-807,-800,-759,-792,-763]} 1. d4 {[%emt 0:11:14]} d5 {[%emt 0:00:09]} 2. Nf3 {[%emt 0:00:08]} Nf6 {[%emt 0:00:06][%cal Bg8f6,Bf6d5,Bd5b4][%mdl 32]} 3. c4 {[%emt 0:00:06]} e6 {[%emt 0:00:18]} 4. g3 {[%emt 0:00:13]} dxc4 {[%emt 0:00:10]} 5. Bg2 {[%emt 0:00:10]} Nc6 {[%emt 0:00:05]} 6. Qa4 {[%emt 0:00:21]} Bb4+ {[%emt 0:01:13]} 7. Bd2 {[%emt 0:00:18]} Nd5 {[%emt 0:00:21]} 8. Bxb4 {[%emt 0:03:01]} Ndxb4 {[%emt 0:00:07]} 9. O-O {[%emt 0:00:44]} Rb8 {[%emt 0:02:47]} 10. Na3 {[%emt 0:01:32] E04: Open Catalan: 5 Nf3.} O-O {[%emt 0:04:31]} 11. Qb5 $1 {[%emt 0:03:07]} b6 {[%emt 0:00:07]} 12. Qxc4 {[%emt 0:00:31] White has an edge.} Ba6 {[%emt 0:00:06]} 13. Nb5 {[%emt 0:00:11]} Qd5 {[%emt 0:09:02]} 14. Qxd5 {[%emt 0:00:25]} Nxd5 {[%emt 0:00:18]} 15. a4 {[%emt 0:00:43]} Bb7 {[%emt 0:07:20]} (15... Na5 $5 {[%cal Rc7c6]}) 16. Rac1 {[%emt 0:07:11]} a6 {[%emt 0:01:50] [#]} 17. Na3 $146 {[%emt 0:01:42][%cal Bb5a3,Ba3c4,Bc4d6][%mdl 32]} ({Predecessor:} 17. Nc3 Nf6 18. e4 Nb4 19. Ne5 Rbc8 20. Rfd1 Rfd8 21. f4 Kf8 22. Kf2 Nd7 23. Nc4 Ke7 24. e5 Bxg2 25. Kxg2 Nb8 26. Ne3 {½-½ (26) Wells,J (2024)-Ipatov,A (2147) Torquay 2013}) 17... Rfc8 {[%emt 0:02:58]} 18. Nc4 {[%emt 0:02:02]} Ncb4 {[%emt 0:06:45]} 19. a5 {[%emt 0:05:14]} Bc6 {[%emt 0:08:35]} 20. Nfe5 {[%emt 0:08:13] Threatens to win with axb6.} Bb5 {[%emt 0:02:26]} 21. axb6 {[%emt 0:00:34]} (21. e4 $5 {[%cal Re4d5]} Ne7 22. Rfd1 $14) 21... cxb6 {[%emt 0:00:24]} ({Black should try} 21... Nxb6 $11 22. b3 f6) 22. Nd6 $14 {[%emt 0:00:46][%csl LRc8,LRf7]} Rxc1 {[%emt 0:03:17]} 23. Rxc1 {[%emt 0:00:02]} f6 {[%emt 0:00:16]} 24. Nec4 {[%emt 0:07:22]} (24. e4 $1 $14 {is more appropriate.}) 24... Bd7 {[%emt 0:00:06]} 25. Ne3 {[%emt 0:04:17]} (25. e4 $14 {was preferrable.} Nd3 26. Rd1) 25... Nxe3 {[%emt 0:01:36]} 26. fxe3 {[%emt 0:00:43]} Kf8 $1 {[%emt 0:01:35]} 27. Rc4 {[%emt 0:07:37]} (27. Rc7 $11 Ke7 28. Nc4) 27... Ke7 $15 {[%emt 0:05:17]} 28. Nf5+ $2 {[%emt 0:00:50] [#] This costs White the game.} ({Better is} 28. Ne4 $15 Nd5 29. Kf2) 28... exf5 $19 {[%emt 0:00:06]} 29. Rxb4 {[%emt 0:00:03][%mdl 4096] Endgame KRB-KRB} b5 {[%emt 0:01:44][%cal Bb6b5,Bb5b4][%mdl 32] Inhibits Rc4.} 30. d5 {[%emt 0:05:28]} a5 {[%emt 0:00:10][%cal Ba6a5,Ba5a4,Ba4a3][%mdl 32]} 31. Rd4 {[%emt 0:00:41]} Kd6 {[%emt 0:00:10]} 32. Kf2 {[%emt 0:07:00]} b4 {[%emt 0:03:18]} 33. e4 {[%emt 0:00:37]} a4 {[%emt 0:00:29] [#] And now ...a3 would win.} 34. exf5 {[%emt 0:02:47]} Bxf5 {[%emt 0:00:06]} 35. Rc4 $2 {[%emt 0:00:32]} (35. e4 Bd7 36. Rd1) 35... a3 {[%emt 0:01:24] Black is clearly winning.} 36. Rc6+ {[%emt 0:03:06]} Ke5 {[%emt 0:00:05]} 37. b3 {[%emt 0:03:19]} Ra8 {[%emt 0:00:13] Weighted Error Value: White=0.49/Black=0.12 (very precise)} 0-1

[Event "Krakow Championship-A 2022"]
[Site "Krakow"]
[Date "2022.07.02"]
[Round "9.13"]
[White "Balaji Sekar"]
[Black "Marszalek, Maciej"]
[Result "1/2-1/2"]
[ECO "C88"]
[WhiteElo "1189"]
[BlackElo "2290"]
[Annotator "TA"]
[PlyCount "88"]
[EventDate "2022.06.25"]
[EventType "swiss"]
[EventCountry "POL"]
[SourceTitle "playchess.com"]
[Source "ChessBase"]
[SourceQuality "1"]
[TimeControl "40/5400+30:1800+30"]

{[%evp 16,88,19,26,26,4,26,26,26,20,26,23,15,0,0,0,35,34,28,0,0,0,0,0,0,0,0,0,0,0,18,14,10,16,16,16,18,12,16,8,28,0,0,0,0,0,0,0,0,0,0,0,0,0,0,0,6,0,6,0,0,2,12,14,60,0,0,0,64,0,0,0,59,0,935]} 1. e4 {[%emt 0:00:03]} e5 {[%emt 0:00:12]} 2. Nf3 {[%emt 0:00:08]} Nc6 {[%emt 0:00:02]} 3. Bb5 {[%emt 0:00:09][%cal Bf1b5,Bb5a4,Ba4b3][%mdl 32]} a6 {[%emt 0:00:19]} 4. Ba4 {[%emt 0:00:05]} Nf6 {[%emt 0:00:08]} 5. O-O {[%emt 0:00:06]} b5 {[%emt 0:00:38]} 6. Bb3 {[%emt 0:00:06]} Be7 {[%emt 0:00:03]} 7. Re1 {[%emt 0:00:16]} O-O {[%emt 0:00:08]} 8. h3 {[%emt 0:00:05]} Bb7 {[%emt 0:00:48]} 9. d3 {[%emt 0:03:11]} d6 {[%emt 0:02:13] 9...d5 might become the main line. C88: Closed Ruy Lopez: Anti-Marshall Systems.} 10. Bd2 {[%emt 0:06:12]} Re8 {[%emt 0:03:20]} 11. a4 {[%emt 0:03:18]} Qd7 {[%emt 0:09:27] White has an edge.} 12. Nc3 {[%emt 0:01:19] [#]} Nd8 $146 {[%emt 0:00:45]} ({Predecessor:} 12... Na5 13. Ba2 c5 14. Bg5 b4 15. Bxf6 Bxf6 16. Nd5 Qd8 17. Ne3 b3 18. Bxb3 Nxb3 19. cxb3 {½-½ (32) Galik,A (2247)-Glaser,K (2283) ICCF email 2019}) 13. Nd5 {[%emt 0:14:54]} Ne6 {[%emt 0:14:01]} 14. Be3 {[%emt 0:02:39]} Bd8 {[%emt 0:07:24]} 15. c3 {[%emt 0:13:35]} Nc5 {[%emt 0:03:23]} 16. Bxc5 {[%emt 0:05:14]} dxc5 {[%emt 0:00:27]} 17. d4 {[%emt 0:13:20]} exd4 {[%emt 0:07:15]} 18. Nxf6+ {[%emt 0:00:53]} Bxf6 {[%emt 0:00:04]} 19. e5 {[%emt 0:00:13][%cal Be4e5,Be5f6][%mdl 32]} c4 {[%emt 0:03:42]} 20. exf6 {[%emt 0:03:24][%cal Od1d2]} Rxe1+ {[%emt 0:00:47]} 21. Nxe1 {[%emt 0:00:32][%cal Od1d2] [#] Threatens to win with Qd2!} cxb3 {[%emt 0:00:08]} 22. axb5 {[%emt 0:02:14]} axb5 {[%emt 0:03:11] Hoping for ...Rxa1.} 23. Rxa8+ {[%emt 0:00:10]} Bxa8 {[%emt 0:00:01]} 24. cxd4 {[%emt 0:06:18]} gxf6 {[%emt 0:02:45]} (24... Bd5 {looks sharper.} 25. fxg7 Bc4 26. Qd2 Qf5) 25. Qxb3 {[%emt 0:01:51]} Qxd4 $11 {[%emt 0:05:19][%mdl 4096] Endgame KQB-KQN} 26. Qg3+ {[%emt 0:00:03]} Kh8 {[%emt 0:00:08]} 27. Qxc7 {[%emt 0:00:12] [#] Black must now prevent Qb8+.} Qe4 {[%emt 0:03:46]} 28. Qd8+ {[%emt 0:04:13]} Kg7 {[%emt 0:00:06]} 29. Qd2 {[%emt 0:00:32]} Qe5 {[%emt 0:04:45]} 30. f3 {[%emt 0:05:41]} Bd5 {[%emt 0:01:32]} 31. Kf2 {[%emt 0:01:55]} Bc4 {[%emt 0:00:47]} 32. f4 {[%emt 0:00:19]} Qc5+ {[%emt 0:02:30]} 33. Qe3 {[%emt 0:00:41]} Qb4 {[%emt 0:00:56]} 34. Qg3+ {[%emt 0:01:12]} Kh8 {[%emt 0:01:06]} 35. Qc3 {[%emt 0:00:15]} Qd6 {[%emt 0:00:43]} 36. Kg3 {[%emt 0:00:30]} Bd5 {[%emt 0:04:17]} 37. Nc2 {[%emt 0:04:15]} Be4 {[%emt 0:00:58]} 38. Qd4 {[%emt 0:01:03]} Qc6 {[%emt 0:01:20]} 39. Ne3 {[%emt 0:00:12]} Kg7 {[%emt 0:00:22]} (39... Kg8 $11) 40. Kf2 {[%emt 0:01:44]} (40. Kh4 $1 $14) 40... h5 {[%emt 0:01:56]} 41. Kg3 {[%emt 0:31:12]} Kg6 {[%emt 0:33:28]} (41... Qa8 $11) 42. Kf2 {[%emt 0:03:21]} ({Better is} 42. Kh4 $1 $14) 42... Kh7 {[%emt 0:00:55]} 43. Kg3 {[%emt 0:00:00]} ({White should play} 43. Qb4 $11) 43... Kg6 $14 {[%emt 0:00:00]} 44. Kf2 (44. Kh4 $1 $14) 44... Bd3 $2 {[%mdl 40960] Weighted Error Value: White=0.08 (flawless) /Black=0.08 (flawless) . An unexpected result.} 1/2-1/2

[Event "Krakow Championship-A 2022"]
[Site "Krakow"]
[Date "2022.07.02"]
[Round "9.14"]
[White "Nurkiewicz, Maciej"]
[Black "Stevik, Patrik jun."]
[Result "1-0"]
[ECO "B06"]
[WhiteElo "2332"]
[BlackElo "2188"]
[Annotator "TA"]
[PlyCount "60"]
[EventDate "2022.06.25"]
[EventType "swiss"]
[EventCountry "POL"]
[SourceTitle "playchess.com"]
[Source "ChessBase"]
[SourceQuality "1"]
[TimeControl "40/5400+30:1800+30"]

{[%evp 20,60,24,8,8,0,39,33,29,31,43,29,66,47,65,52,50,58,88,94,93,0,97,100,99,100,115,109,136,150,127,141,182,190,321,322,308,302,403,70,77,84,127]} 1. e4 {[%emt 0:00:04]} g6 {[%emt 0:00:07]} 2. d4 {[%emt 0:00:34]} Bg7 {[%emt 0:00:04]} 3. Nc3 {[%emt 0:00:08]} d6 {[%emt 0:00:05]} 4. g3 {[%emt 0:03:26]} Nf6 {[%emt 0:06:03]} 5. Bg2 {[%emt 0:00:13]} O-O {[%emt 0:00:21]} 6. Nge2 {[%emt 0:00:14][%cal Bg1e2,Be2d4,Bd4b3][%mdl 32]} Nbd7 {[%emt 0:03:31][%cal Bb8d7,Bd7c5,Bc5e6,Be6d8,Bd8c6][%mdl 32]} 7. O-O {[%emt 0:01:09]} e5 {[%emt 0:03:29]} 8. h3 {[%emt 0:03:38]} exd4 {[%emt 0:05:00]} 9. Nxd4 {[%emt 0:01:08]} Re8 {[%emt 0:00:33]} 10. Re1 {[%emt 0:05:29]} Nc5 {[%emt 0:02:25]} 11. Nb3 {[%emt 0:03:30]} Nfd7 {[%emt 0:06:13] B07: Pirc Defence: Miscellaneous Systems.} 12. Be3 {[%emt 0:15:37]} Ne6 {[%emt 0:02:53]} (12... Bxc3 $5 13. bxc3 Rb8 $11) 13. f4 {[%emt 0:06:38]} Nb6 {[%emt 0:01:45] [#] White is slightly better.} 14. Qe2 $146 {[%emt 0:09:38]} (14. f5 {is more complex.} Nf8 15. Bd4 Bh6 16. fxg6 hxg6 17. e5) ({Predecessor:} 14. Bf1 Bd7 15. Qd2 Bc6 16. Nd4 Nxd4 17. Bxd4 Bxd4+ 18. Qxd4 Nd7 19. Nd5 Bxd5 20. exd5 {½-½ (28) Markosian,D (2362)-Brikov,I (2355) Tula 2001}) 14... Bd7 {[%emt 0:02:06]} 15. Rad1 {[%emt 0:01:37]} Qc8 {[%emt 0:02:39]} 16. Qd3 {[%emt 0:09:45]} Nd8 {[%emt 0:14:42]} 17. Kh2 {[%emt 0:01:38]} Nc6 {[%emt 0:01:28]} 18. a3 {[%emt 0:06:15]} Be6 {[%emt 0:02:58]} 19. Nd2 {[%emt 0:04:38] Prevents Bc4.} Qd8 {[%emt 0:09:30]} 20. g4 (20. b3 $16) 20... Qe7 {[%emt 0:10:14]} (20... g5 $11 {keeps the balance.}) 21. Nd5 $16 {[%emt 0:07:53]} Qd8 {[#]} 22. b3 Nd7 {[%emt 0:03:34]} 23. c4 {[%emt 0:02:29][%cal Bc2c4,Bc4d5][%mdl 32]} Nc5 {[%emt 0:01:30]} 24. Bxc5 {[%emt 0:01:49]} dxc5 {[%emt 0:00:02]} 25. e5 {[%emt 0:00:15]} Nd4 {[%emt 0:01:55]} 26. Ne4 {[%emt 0:00:16]} Bxd5 {[%emt 0:07:20]} (26... Qh4 $142 27. Ndf6+ (27. Nxc5 Bxg4 28. Qxd4 Bxd1 $16) 27... Bxf6 28. Nxf6+ Kg7) 27. cxd5 $18 {[%emt 0:00:03]} b6 {[%emt 0:00:38]} 28. b4 {[%emt 0:05:11]} f6 {[%emt 0:01:29]} 29. e6 {[%emt 0:01:04] [#]} (29. d6 $18) 29... f5 $14 30. gxf5 {[%emt 0:00:08] 0x0.00207d09dcc3dp-1022s more active pieces.} gxf5 {[%emt 0:03:12] Weighted Error Value: White=0.35/Black=0.34} 1-0

[Event "Krakow Championship-A 2022"]
[Site "Krakow"]
[Date "2022.07.02"]
[Round "9.15"]
[White "Turcan, Richard"]
[Black "Goroshkov, Maksym"]
[Result "1-0"]
[ECO "A43"]
[WhiteElo "2278"]
[BlackElo "2226"]
[Annotator "TA"]
[PlyCount "87"]
[EventDate "2022.06.25"]
[EventType "swiss"]
[EventCountry "POL"]
[SourceTitle "playchess.com"]
[Source "ChessBase"]
[SourceQuality "1"]
[TimeControl "40/5400+30:1800+30"]

{[%evp 11,87,71,69,81,79,44,49,41,31,29,68,63,64,64,64,62,68,64,239,254,266,250,239,163,202,190,194,175,163,173,215,108,117,132,194,155,256,256,245,249,253,250,401,414,383,380,349,370,351,315,446,442,523,518,509,506,534,522,1584,1537,1893,1680,5502,5169,29960,29965,29968,29969,29969,29969,29965,29959,29975,29975,29979,29979,29985,29982]} 1. d4 {[%emt 0:00:19]} Nf6 {[%emt 0:00:29]} 2. c4 {[%emt 0:00:09]} c5 {[%emt 0:00:57]} 3. d5 {[%emt 0:00:11]} d6 {[%emt 0:01:04]} 4. Nc3 {[%emt 0:01:36]} e5 {[%emt 0:06:48]} 5. e4 {[%emt 0:10:00]} Be7 {[%emt 0:01:57]} 6. Be2 {[%emt 0:02:31]} O-O {[%emt 0:03:30] 6...Nbd7 might become the main line.} 7. Be3 {[%emt 0:02:00] A56: Czech Benoni.} a6 {[%emt 0:02:10] [#]} 8. f3 $146 {[%emt 0:02:24]} ({Predecessor:} 8. g4 Ne8 9. Qd2 Nc7 10. g5 b5 11. cxb5 axb5 12. Nxb5 Nxb5 13. Bxb5 Ba6 14. Bxa6 Nxa6 {1-0 (31) Obando Guzman,S (2110)-Garcia Alarcon,A (1971) Bogota 2021}) 8... Nh5 {[%emt 0:02:35][%cal Ob7b5]} 9. Qd2 {[%emt 0:01:32] White is slightly better.} Nf4 {[%emt 0:00:44]} 10. Bf1 {[%emt 0:02:46]} f5 {[%emt 0:03:57]} 11. g3 {[%emt 0:01:20][%cal Bg2g3,Bg3g4][%mdl 32]} (11. Bxf4 exf4 12. O-O-O (12. Qxf4 $2 Bg5 $19) 12... Qa5 $15) 11... Ng6 {[%emt 0:00:12]} 12. exf5 $1 {[%emt 0:00:20]} Bxf5 {[%emt 0:00:09]} 13. h4 {[%emt 0:11:21][%cal Bh2h4,Bh4h5][%mdl 32]} h6 {[%emt 0:00:55][%cal Oe5e4]} 14. O-O-O {[%emt 0:05:13]} Qe8 $2 {[%emt 0:03:55]} (14... Nd7 $2 15. g4 $18) (14... Nh8 $14) 15. h5 $18 {[%emt 0:04:03]} Nh8 {[%emt 0:00:31]} 16. g4 {[%emt 0:00:59]} Bh7 {[%emt 0:00:04]} 17. Be2 {[%emt 0:06:47]} b5 {[%emt 0:03:55]} 18. Nh3 {[%emt 0:01:27]} (18. cxb5 axb5 19. Bxb5 Rxa2 $1 $15) 18... Nf7 {[%emt 0:05:00]} 19. Rdg1 {[%emt 0:05:07]} (19. cxb5 axb5 20. Bxb5 Rxa2 $1 $11) 19... bxc4 {[%emt 0:04:59]} 20. g5 {[%emt 0:02:46]} hxg5 {[%emt 0:06:44]} 21. Nxg5 {[%emt 0:02:11]} (21. Bxg5 $18 Nd7 22. Bxe7 Qxe7 23. h6) 21... Nxg5 $16 {[%emt 0:03:01]} 22. Bxg5 {[%emt 0:02:26]} Bxg5 {[%emt 0:00:25]} (22... Nd7 $16 {keeps fighting.}) 23. Rxg5 {[%emt 0:06:27]} Rf5 {[%emt 0:06:41]} (23... Nd7 $16) 24. h6 $18 {[%emt 0:06:21]} (24. Bxc4 Rxg5 25. Qxg5 Ra7 $16) 24... Rxg5 {[%emt 0:00:52]} 25. Qxg5 {[%emt 0:00:11][%csl Gh6][%cal Rg5g7]} Qf8 {[%emt 0:00:31]} 26. Ne4 {[%emt 0:05:30]} (26. Bxc4 Ra7 $16) 26... Bxe4 $2 {[%emt 0:00:31]} (26... Qf4+ 27. Qxf4 exf4) 27. fxe4 {[%emt 0:00:02] White threatens Rf1 and mate.} Qf4+ {[%emt 0:00:11]} 28. Qxf4 {[%emt 0:00:05]} exf4 {[%emt 0:00:03][%mdl 4096] Endgame KRB-KRN} 29. Rg1 {[%emt 0:01:45]} (29. Bxc4 Ra7 $14) 29... Ra7 {[%emt 0:00:09] [#]} 30. Rg6 $1 {[%emt 0:01:13]} ({Not} 30. Bxc4 Kh7 $14) 30... Kh7 {[%emt 0:01:49]} (30... Re7 $2 31. Bg4 $18 (31. Bxc4 Nd7 $18)) (30... Rf7 {is a better defense.} 31. Rxd6 gxh6) 31. Rxd6 {[%emt 0:00:13]} Nd7 {[%emt 0:01:16]} 32. Re6 {[%emt 0:01:55] Against Ne5} Nf8 {[%emt 0:02:22]} 33. Re8 {[%emt 0:00:18]} Ng6 {[%emt 0:01:11]} 34. e5 {[%emt 0:01:07][%cal Be4e5,Be5e6][%mdl 32] e6 is the strong threat.} Kxh6 {[%emt 0:02:37]} 35. e6 {[%emt 0:01:18] Threatens to win with d6.} f3 {[%emt 0:00:04]} 36. Bxf3 {[%emt 0:00:32] Intending d6 and mate.} Ne5 {[%emt 0:00:04] [#]} 37. d6 $1 {[%emt 0:00:26][%cal Bd5d6,Bd6d7][%mdl 32]} Kg6 {[%emt 0:01:00]} (37... g5 38. e7) 38. Re7 {[%emt 0:00:26] White mates.} Kf6 {[%emt 0:01:49]} 39. Rxa7 {[%emt 0:00:09]} Kxe6 {[%emt 0:00:01]} 40. d7 {[%emt 0:00:13]} Ke7 {[%emt 0:00:04]} 41. Bd1 {[%emt 0:30:33]} g5 {[%emt 0:30:21]} 42. Ba4 {[%emt 0:00:14]} g4 {[%emt 0:00:46]} 43. Ra8 {[%emt 0:00:24]} Nf7 {[%emt 0:00:04]} 44. Re8+ {[%emt 0:00:06] Weighted Error Value: White=0.08 (flawless) /Black=0.49} 1-0

[Event "Krakow Championship-A 2022"]
[Site "Krakow"]
[Date "2022.07.02"]
[Round "9.16"]
[White "Pniaczek, Marek"]
[Black "Sieber, Fiona"]
[Result "1/2-1/2"]
[ECO "B41"]
[WhiteElo "2298"]
[BlackElo "2264"]
[Annotator "TA"]
[PlyCount "123"]
[EventDate "2022.06.25"]
[EventType "swiss"]
[EventCountry "POL"]
[SourceTitle "playchess.com"]
[Source "ChessBase"]
[SourceQuality "1"]
[TimeControl "40/5400+30:1800+30"]

{[%evp 9,123,20,20,20,14,5,27,0,52,17,24,25,46,38,35,44,61,39,53,43,112,24,75,54,89,85,77,90,93,78,100,95,108,2,15,3,27,25,26,33,24,22,39,13,57,8,33,0,28,36,39,0,0,0,0,0,0,0,0,0,0,-33,0,0,0,0,0,0,0,0,0,0,0,0,0,0,0,0,0,0,0,0,0,0,0,0,0,0,0,0,0,0,0,0,0,0,0,0,0,0,0,0,0,0,0,0,0,0,0,0,0,0,0,0,0,0]} 1. e4 {[%emt 0:00:03]} c5 {[%emt 0:00:03]} 2. Nf3 {[%emt 0:00:03]} e6 {[%emt 0:00:03]} 3. d4 {[%emt 0:00:04]} cxd4 {[%emt 0:00:03]} 4. Nxd4 {[%emt 0:00:03]} a6 {[%emt 0:00:04]} 5. g3 {[%emt 0:01:18]} d5 {[%emt 0:00:05]} 6. Nb3 {[%emt 0:00:19] B41: Sicilian: Kan Variation: 5 c4.} dxe4 {[%emt 0:00:05]} 7. Qxd8+ {[%emt 0:00:36]} Kxd8 {[%emt 0:00:03]} 8. Nc3 {[%emt 0:06:21] [#] White has an edge.} Nf6 $146 {[%emt 0:02:28]} (8... f5 $11) ({Predecessor:} 8... f5 9. Be3 Nf6 10. O-O-O+ Nbd7 11. Bc4 Ke7 12. Nd4 Ne5 13. Bb3 Bd7 14. Bg5 g6 {0-1 (34) Represa Perez,M (2151)-Fedorchuk,S (2604) Ferreira do Alentejo 2018}) 9. Bg5 {[%emt 0:03:24]} Bd7 {[%emt 0:07:31]} 10. O-O-O {[%emt 0:12:35]} Kc7 {[%emt 0:00:47]} 11. Bg2 {[%emt 0:01:42]} Bb4 {[%emt 0:08:21]} 12. Nxe4 {[%emt 0:03:45]} Bc6 {[%emt 0:07:42]} 13. Rd4 {[%emt 0:02:28]} Nxe4 {[%emt 0:04:49]} 14. Bxe4 {[%emt 0:00:22]} Bd6 {[%emt 0:07:33]} (14... Bxe4 $14 15. Bf4+ (15. Rxe4 Nc6 $11) 15... Kc8 16. Rxe4 Nc6) 15. Na5 {[%emt 0:06:38]} (15. Rhd1 $16 {Hoping for Bxc6.} h6 16. Be3 (16. Rxd6 hxg5 17. Bxc6 Nxc6 $16)) 15... Bxe4 {[%emt 0:01:08]} (15... f6 $11 {keeps the balance.} 16. Bd2 (16. Nxc6 Nxc6 17. Bxc6 Kxc6 $11) 16... Bc5) 16. Rxe4 $16 {[%emt 0:00:08]} b5 {[%emt 0:04:18] Prevents Rc4+.} 17. Rd1 {[%emt 0:03:26]} Nc6 {[%emt 0:00:50] Inhibits Red4.} 18. Nxc6 {[%emt 0:01:19]} Kxc6 {[%emt 0:00:02]} 19. Red4 {[%emt 0:00:29]} Bc5 {[%emt 0:00:10]} 20. Rd7 {[%emt 0:00:27]} Ra7 {[%emt 0:06:36] [#]} 21. R7d2 {[%emt 0:03:05] White is more active.} ({Better is} 21. R1d6+ $1 $16 {[%mdl 512]} Bxd6 22. Rxa7) 21... Rc8 {[%emt 0:01:57]} 22. Bf4 {[%emt 0:01:44]} Re7 {[%emt 0:06:11]} 23. Be5 {[%emt 0:03:37]} f6 {[%emt 0:00:19]} 24. Bd6 {[%emt 0:00:11]} Bxd6 {[%emt 0:00:19]} 25. Rxd6+ $14 {[%emt 0:00:05][%mdl 4096] Endgame KRR-KRR} Kb7 {[%emt 0:00:03]} 26. R1d4 {[%emt 0:05:57]} h5 {[%emt 0:04:49]} 27. a4 {[%emt 0:03:25]} (27. c3 $14) 27... Rc6 {[%emt 0:03:17]} 28. Kd2 {[%emt 0:02:39]} Rec7 {[%emt 0:02:47]} 29. Rxc6 {[%emt 0:02:48]} Kxc6 $11 {[%emt 0:00:44] KR-KR} 30. Kc3 {[%emt 0:00:50]} e5 {[%emt 0:01:20]} 31. Rh4 {[%emt 0:01:06]} Kd5+ {[%emt 0:01:38]} 32. Kd3 {[%emt 0:00:31]} g6 {[%emt 0:00:21]} 33. axb5 {[%emt 0:04:36]} axb5 {[%emt 0:00:06]} 34. Rb4 {[%emt 0:01:25]} Kc5 {[%emt 0:00:22]} 35. c3 {[%emt 0:00:30]} Ra7 {[%emt 0:03:27]} 36. f4 {[%emt 0:01:55] The position is equal.} Ra1 {[%emt 0:07:30]} 37. fxe5 {[%emt 0:01:05]} fxe5 {[%emt 0:00:06]} 38. g4 {[%emt 0:02:52]} Rd1+ {[%emt 0:01:43]} 39. Ke3 {[%emt 0:00:22]} h4 {[%emt 0:02:07]} 40. g5 {[%emt 0:00:50]} h3 {[%emt 0:00:47]} 41. Rh4 {[%emt 0:30:12]} Rg1 {[%emt 0:30:52]} 42. Rxh3 {[%emt 0:00:12]} Rxg5 {[%emt 0:00:06]} 43. b3 {[%emt 0:03:45]} Rg2 {[%emt 0:00:36]} 44. Kd3 {[%emt 0:06:42]} Rb2 {[%emt 0:01:27]} 45. Rg3 {[%emt 0:01:15]} Rxb3 {[%emt 0:01:35] Strongly threatening ...b4.} 46. Kc2 {[%emt 0:00:05]} Ra3 {[%emt 0:00:03]} 47. Rxg6 {[%emt 0:00:54]} Ra2+ {[%emt 0:00:04]} 48. Kd3 {[%emt 0:00:58]} Rxh2 {[%emt 0:00:33][%cal Oe5e4] White must now prevent ...e4+!} 49. Rg8 {[%emt 0:00:25]} Rh3+ {[%emt 0:00:34]} 50. Kd2 {[%emt 0:00:54]} e4 {[%emt 0:06:57]} 51. Rc8+ {[%emt 0:00:42]} Kd5 {[%emt 0:00:06]} 52. Rd8+ {[%emt 0:04:14]} Kc4 {[%emt 0:01:39] ( -> ...Rd3+)} 53. Rd4+ {[%emt 0:00:06]} Kb3 {[%emt 0:00:52]} 54. Rb4+ {[%emt 0:00:04]} Ka3 {[%emt 0:00:04]} 55. Rxb5 {[%emt 0:00:27]} Rh2+ {[%emt 0:01:17]} 56. Ke3 {[%emt 0:00:31]} Rc2 {[%emt 0:02:09]} 57. Kd4 {[%emt 0:00:13]} Ka4 {[%emt 0:01:30]} 58. Rb1 {[%emt 0:00:48]} Ka3 {[%emt 0:03:35]} 59. c4 {[%emt 0:01:36]} Ka2 {[%emt 0:00:19]} 60. Rb8 {[%emt 0:00:41]} e3 {[%emt 0:02:07]} 61. Kd3 $1 {[%emt 0:01:54]} Rc1 {[%emt 0:00:15]} 62. Kxe3 {[%emt 0:04:37] Weighted Error Value: White=0.11 (very precise) /Black=0.09 (flawless)} (62. Rc8 $5 {[%cal Rd3e3]}) 1/2-1/2